bitfinex/quotes_BTCUSD_20251009
["timestamp","ask_amount","ask_price","bid_price","bid_amount"]
[1760008051951,0.49692961,122330.0,122320.0,0.00122723]
[1760008052163,0.7510611,122330.0,122320.0,0.00122723]
[1760008053444,0.74339968,122330.0,122320.0,0.00122723]
[1760008054040,0.59179648,122330.0,122320.0,0.00122723]
[1760008054252,0.82339648,122330.0,122320.0,0.00122723]
[1760008059290,0.59179648,122330.0,122320.0,0.00122723]
[1760008059471,0.90647854,122330.0,122320.0,0.00122723]
[1760008062021,0.67491854,122330.0,122320.0,0.00122723]
[1760008062452,0.90647854,122330.0,122320.0,0.00122723]
[1760008065381,0.65234705,122330.0,122320.0,0.00122723]
[1760008065589,0.90647854,122330.0,122320.0,0.00122723]
[1760008066391,0.59492174,122330.0,122320.0,0.00122723]
[1760008066593,0.82648494,122330.0,122320.0,0.00122723]
[1760008067600,0.57235345,122330.0,122320.0,0.00122723]
[1760008067831,0.82648494,122330.0,122320.0,0.00122723]
[1760008069626,0.57235345,122330.0,122320.0,0.00122723]
[1760008069846,0.90648174,122330.0,122320.0,0.00122723]
[1760008073058,0.65235025,122330.0,122320.0,0.00122723]
[1760008073265,0.90648174,122330.0,122320.0,0.00122723]
[1760008076192,0.89115354,122330.0,122320.0,0.00122723]
[1760008076393,0.90648402,122330.0,122320.0,0.00122723]
[1760008076637,0.67492402,122330.0,122320.0,0.00122723]
[1760008076842,1.16061551,122330.0,122320.0,0.00122723]
[1760008078840,0.90648402,122330.0,122320.0,0.00122723]
[1760008079490,0.82648722,122330.0,122320.0,0.00122723]
[1760008080281,0.91130152,122330.0,122320.0,0.00122723]
[1760008080607,0.34079573,122330.0,122320.0,0.00122723]
[1760008080817,0.56397026,122330.0,122320.0,0.00122723]
[1760008081900,0.54863978,122330.0,122320.0,0.00122723]
[1760008082915,0.54859978,122330.0,122320.0,0.00122723]
[1760008083101,0.23395772,122330.0,122320.0,0.00122723]
[1760008083314,0.23395772,122330.0,122320.0,0.01725723]
[1760008083315,0.44576772,122330.0,122320.0,0.01725723]
[1760008083513,0.44576772,122330.0,122320.0,0.00122723]
[1760008083711,0.46507772,122330.0,122320.0,0.00122723]
[1760008084989,0.23355772,122330.0,122320.0,0.00122723]
[1760008085214,0.46507772,122330.0,122320.0,0.00122723]
[1760008085379,0.23355772,122330.0,122320.0,0.00122723]
[1760008085605,0.46507772,122330.0,122320.0,0.00122723]
[1760008086373,0.42121352,122330.0,122320.0,0.00122723]
[1760008086572,0.17300352,122330.0,122320.0,0.55390857]
[1760008086826,0.39680352,122330.0,122320.0,0.55390857]
[1760008087231,0.16528352,122330.0,122320.0,0.55390857]
[1760008087856,0.16549219,122330.0,122320.0,0.55390857]
[1760008088895,0.16549219,122330.0,122320.0,0.05971859]
[1760008089531,0.22231449,122330.0,122320.0,0.05971859]
[1760008089832,0.22231449,122330.0,122320.0,0.05145723]
[1760008090035,0.22231449,122330.0,122320.0,0.21496278]
[1760008090454,0.22231449,122330.0,122320.0,0.05145723]
[1760008090865,0.16549219,122330.0,122320.0,0.06543535]
[1760008091112,0.16549219,122330.0,122320.0,0.23701012]
[1760008091321,0.16549219,122330.0,122320.0,0.223032]
[1760008091524,0.18151219,122330.0,122320.0,0.02854723]
[1760008091740,0.18151219,122330.0,122320.0,0.01251723]
[1760008091939,0.27192007,122330.0,122320.0,0.00122723]
[1760008093968,0.50344007,122330.0,122320.0,0.00122723]
[1760008094947,0.27192007,122330.0,122320.0,0.00122723]
[1760008095100,0.41303219,122330.0,122320.0,0.00122723]
[1760008095745,0.18151219,122330.0,122320.0,0.00122723]
[1760008096162,0.20082219,122330.0,122320.0,0.00122723]
[1760008097418,0.18151219,122330.0,122320.0,0.00122723]
[1760008098032,0.18151219,122330.0,122320.0,0.01725723]
[1760008098240,0.18151219,122330.0,122320.0,0.00122723]
[1760008099423,1.18151219,122330.0,122320.0,0.00122723]
[1760008099901,1.20082219,122330.0,122320.0,0.00122723]
[1760008105042,1.26886483,122330.0,122320.0,0.00122723]
[1760008106661,1.20082219,122330.0,122320.0,0.00122723]
[1760008107254,1.53976798,122330.0,122320.0,0.00122723]
[1760008107437,1.77124798,122330.0,122320.0,0.00122723]
[1760008107852,1.43230219,122330.0,122320.0,0.00122723]
[1760008108059,1.77124798,122330.0,122320.0,0.00122723]
[1760008108264,1.85124478,122330.0,122320.0,0.00122723]
[1760008109259,1.93436684,122330.0,122320.0,0.00122723]
[1760008110116,1.80324077,122330.0,122320.0,1e-08]
[1760008110409,2.06693464,122330.0,122320.0,1e-08]
[1760008112166,1.72798885,122330.0,122320.0,1e-08]
[1760008112317,2.06693464,122330.0,122320.0,1e-08]
[1760008113437,1.75041464,122330.0,122320.0,1e-08]
[1760008113646,2.06693464,122330.0,122320.0,1e-08]
[1760008115354,2.05927702,122330.0,122320.0,1e-08]
[1760008119037,2.05924928,122330.0,122320.0,1e-08]
[1760008119996,1.82776928,122330.0,122320.0,1e-08]
[1760008120196,2.05924928,122330.0,122320.0,1e-08]
[1760008122191,2.05924753,122330.0,122320.0,1e-08]
[1760008124354,1.74272753,122330.0,122320.0,1e-08]
[1760008124533,2.05924753,122330.0,122320.0,1e-08]
[1760008125515,2.40583549,122330.0,122320.0,1e-08]
[1760008125714,2.21917599,122330.0,122320.0,1e-08]
[1760008125939,2.45065599,122330.0,122320.0,1e-08]
[1760008126288,2.56726623,122330.0,122320.0,1e-08]
[1760008126504,2.61640623,122330.0,122320.0,1e-08]
[1760008126713,2.61540701,122330.0,122320.0,1e-08]
[1760008126934,2.61740701,122330.0,122320.0,1e-08]
[1760008127376,2.38592701,122330.0,122320.0,1e-08]
[1760008127580,2.5975865,122330.0,122320.0,1e-08]
[1760008127781,2.7063465,122330.0,122320.0,1e-08]
[1760008128007,2.8547865,122330.0,122320.0,1e-08]
[1760008128143,2.83982651,122330.0,122320.0,1e-08]
[1760008128346,2.9398265,122330.0,122320.0,1e-08]
[1760008128547,2.50088072,122330.0,122320.0,1e-08]
[1760008129116,2.89880568,122330.0,122320.0,1e-08]
[1760008129318,2.55985989,122330.0,122320.0,1e-08]
[1760008129470,3.00080567,122330.0,122320.0,1e-08]
[1760008129857,2.95166567,122330.0,122320.0,1e-08]
[1760008130684,2.29490567,122330.0,122320.0,1e-08]
[1760008131012,1.41201731,122330.0,122320.0,1e-08]
[1760008131247,1.71096706,122330.0,122320.0,1e-08]
[1760008131453,1.81839285,122330.0,122320.0,1e-08]
[1760008131607,2.04991285,122330.0,122320.0,1e-08]
[1760008132041,1.96487285,122330.0,122320.0,1e-08]
[1760008132285,2.12990965,122330.0,122320.0,1e-08]
[1760008132667,1.81334965,122330.0,122320.0,1e-08]
[1760008132877,2.12990965,122330.0,122320.0,1e-08]
[1760008133220,1.81334965,122330.0,122320.0,1e-08]
[1760008133430,2.12990965,122330.0,122320.0,1e-08]
[1760008133660,1.81334965,122330.0,122320.0,1e-08]
[1760008133842,2.12990965,122330.0,122320.0,1e-08]
[1760008134880,1.81334965,122330.0,122320.0,1e-08]
[1760008135096,2.12990965,122330.0,122320.0,1e-08]
[1760008138849,1.81334965,122330.0,122320.0,1e-08]
[1760008139059,2.12986965,122330.0,122320.0,1e-08]
[1760008140277,1.89838965,122330.0,122320.0,1e-08]
[1760008140586,2.12986965,122330.0,122320.0,1e-08]
[1760008141891,1.81334965,122330.0,122320.0,1e-08]
[1760008142099,1.47944706,122330.0,122320.0,1e-08]
[1760008142278,1.9651422,122330.0,122320.0,1e-08]
[1760008143416,1.6486222,122330.0,122320.0,1e-08]
[1760008143638,1.9651422,122330.0,122320.0,1e-08]
[1760008144949,1.6486222,122330.0,122320.0,1e-08]
[1760008145224,2.045139,122330.0,122320.0,1e-08]
[1760008145925,2.29935414,122330.0,122320.0,1e-08]
[1760008148360,2.045139,122330.0,122320.0,1e-08]
[1760008150358,2.03749654,122330.0,122320.0,1e-08]
[1760008153504,2.29171168,122330.0,122320.0,1e-08]
[1760008156883,2.27642675,122330.0,122320.0,1e-08]
[1760008157239,1.76799647,122330.0,122320.0,1e-08]
[1760008157444,2.03751504,122330.0,122320.0,1e-08]
[1760008158055,2.29173018,122330.0,122320.0,1e-08]
[1760008158405,2.29938527,122330.0,122320.0,1e-08]
[1760008158637,1.79095499,122330.0,122320.0,1e-08]
[1760008158843,2.29938527,122330.0,122320.0,1e-08]
[1760008159049,2.04517013,122330.0,122320.0,1e-08]
[1760008160683,2.04519021,122330.0,122320.0,1e-08]
[1760008161087,2.04519707,122330.0,122320.0,1e-08]
[1760008161289,2.29941221,122330.0,122320.0,1e-08]
[1760008161837,2.23843304,122330.0,122320.0,1e-08]
[1760008164114,2.2384354,122330.0,122320.0,1e-08]
[1760008167339,1.98422026,122330.0,122320.0,1e-08]
[1760008168875,2.2384354,122330.0,122320.0,1e-08]
[1760008169813,2.2383954,122330.0,122320.0,1e-08]
[1760008179114,2.0069554,122330.0,122320.0,1e-08]
[1760008179308,2.2383554,122330.0,122320.0,1e-08]
[1760008183402,1.66770026,122330.0,122320.0,1e-08]
[1760008183606,1.98414026,122330.0,122320.0,1e-08]
[1760008184043,1.89910026,122330.0,122320.0,1e-08]
[1760008184249,1.98414026,122330.0,122320.0,1e-08]
[1760008184455,1.66770026,122330.0,122320.0,1e-08]
[1760008184661,1.98414026,122330.0,122320.0,1e-08]
[1760008186005,1.41348512,122330.0,122320.0,1e-08]
[1760008186211,1.81910346,122330.0,122320.0,0.00021025]
[1760008186413,1.58770346,122330.0,122320.0,0.00021025]
[1760008186646,1.81911455,122330.0,122320.0,0.00021025]
[1760008187580,1.33349941,122330.0,122320.0,0.00021025]
[1760008187785,1.56840455,122330.0,122320.0,0.00021025]
[1760008187993,1.53792311,122330.0,122320.0,0.00021025]
[1760008188636,1.53592311,122330.0,122320.0,0.00021025]
[1760008188857,1.79013825,122330.0,122320.0,0.00021025]
[1760008189063,1.79113825,122330.0,122320.0,0.00021025]
[1760008189266,1.81044825,122330.0,122320.0,0.00021025]
[1760008189975,1.62989099,122330.0,122320.0,0.00021025]
[1760008190219,1.86229099,122330.0,122320.0,0.00021025]
[1760008193956,1.86225099,122330.0,122320.0,0.00021025]
[1760008194611,2.10113352,122330.0,122320.0,0.00021025]
[1760008194814,1.86223685,122330.0,122320.0,0.00021025]
[1760008196269,2.11645199,122330.0,122320.0,0.00021025]
[1760008197524,2.12411129,122330.0,122320.0,0.00021025]
[1760008198597,2.14696643,122330.0,122320.0,1e-08]
[1760008198808,2.82362643,122330.0,122320.0,1e-08]
[1760008199015,2.59226643,122330.0,122320.0,1e-08]
[1760008199232,2.96627586,122330.0,122320.0,1e-08]
[1760008199636,2.96527586,122330.0,122320.0,1e-08]
[1760008199841,2.96727586,122330.0,122320.0,1e-08]
[1760008200081,2.96727527,122330.0,122320.0,1e-08]
[1760008200368,2.96527527,122330.0,122320.0,1e-08]
[1760008200513,2.51997527,122330.0,122320.0,1e-08]
[1760008200711,2.52097527,122330.0,122320.0,1e-08]
[1760008200972,2.28961527,122330.0,122320.0,1e-08]
[1760008201093,2.31368425,122330.0,122320.0,1e-08]
[1760008201292,2.56486476,122330.0,122320.0,1e-08]
[1760008201785,2.62361712,122330.0,122320.0,1e-08]
[1760008201986,2.39225712,122330.0,122320.0,1e-08]
[1760008202183,2.54123812,122330.0,122320.0,1e-08]
[1760008202327,2.52141761,122330.0,122320.0,1e-08]
[1760008203352,2.49934863,122330.0,122320.0,1e-08]
[1760008203778,2.57053761,122330.0,122320.0,1e-08]
[1760008203988,2.67941761,122330.0,122320.0,1e-08]
[1760008204196,2.99581761,122330.0,122320.0,1e-08]
[1760008204411,2.97374863,122330.0,122320.0,1e-08]
[1760008204656,2.74238863,122330.0,122320.0,1e-08]
[1760008204840,2.97374863,122330.0,122320.0,1e-08]
[1760008208838,1.92885542,122330.0,122320.0,1e-08]
[1760008209104,1.96105268,122330.0,122320.0,1e-08]
[1760008209254,2.19241268,122330.0,122320.0,1e-08]
[1760008209633,1.85836323,122330.0,122320.0,1e-08]
[1760008209852,2.17476323,122330.0,122320.0,1e-08]
[1760008210326,2.25476003,122330.0,122320.0,1e-08]
[1760008210761,2.25472344,122330.0,122320.0,1e-08]
[1760008212921,1.93832344,122330.0,122320.0,1e-08]
[1760008213133,1.89836346,122330.0,122320.0,1e-08]
[1760008213332,2.12972346,122330.0,122320.0,1e-08]
[1760008213534,1.81332346,122330.0,122320.0,1e-08]
[1760008213741,2.04468346,122330.0,122320.0,1e-08]
[1760008213937,2.12972346,122330.0,122320.0,1e-08]
[1760008217035,2.23749667,122330.0,122320.0,1e-08]
[1760008217236,2.61146228,122330.0,122320.0,1e-08]
[1760008218426,2.66058228,122330.0,122320.0,1e-08]
[1760008218631,2.68040279,122330.0,122320.0,1e-08]
[1760008219996,2.63128279,122330.0,122320.0,1e-08]
[1760008222415,2.65335177,122330.0,122320.0,1e-08]
[1760008228447,2.68283958,122330.0,122320.0,1e-08]
[1760008228880,2.7098906,122330.0,122320.0,1e-08]
[1760008229342,2.75412232,122330.0,122320.0,1e-08]
[1760008231152,2.75415796,122330.0,122320.0,1e-08]
[1760008233906,2.76215796,122330.0,122320.0,1e-08]
[1760008235837,2.17307103,122330.0,122320.0,1e-08]
[1760008236045,3.08269745,122330.0,122320.0,1e-08]
[1760008243558,2.99761745,122330.0,122320.0,1e-08]
[1760008243784,3.08269745,122330.0,122320.0,1e-08]
[1760008244481,2.06180425,122330.0,122320.0,1e-08]
[1760008244713,2.46797252,122330.0,122320.0,1e-08]
[1760008244938,1.85810161,122330.0,122320.0,1e-08]
[1760008245150,2.08946161,122330.0,122320.0,1e-08]
[1760008245356,2.06740793,122330.0,122320.0,1e-08]
[1760008245561,1.7509667,122330.0,122320.0,1e-08]
[1760008245822,2.0623235,122330.0,122320.0,1e-08]
[1760008246047,2.00665434,122330.0,122320.0,1e-08]
[1760008246242,1.67257307,122330.0,122320.0,1e-08]
[1760008246449,1.98901307,122330.0,122320.0,1e-08]
[1760008247544,1.67257307,122330.0,122320.0,1e-08]
[1760008247756,2.06900987,122330.0,122320.0,1e-08]
[1760008249422,1.83764987,122330.0,122320.0,1e-08]
[1760008249637,2.06900987,122330.0,122320.0,1e-08]
[1760008250556,2.06902468,122330.0,122320.0,1e-08]
[1760008250718,1.83766468,122330.0,122320.0,1e-08]
[1760008250946,2.06902468,122330.0,122320.0,1e-08]
[1760008252782,1.83766468,122330.0,122320.0,1e-08]
[1760008252982,1.75766788,122330.0,122320.0,1e-08]
[1760008253188,1.98898788,122330.0,122320.0,1e-08]
[1760008254416,2.05099072,122330.0,122320.0,1e-08]
[1760008256609,1.81967072,122330.0,122320.0,1e-08]
[1760008256814,2.05099072,122330.0,122320.0,1e-08]
[1760008257199,2.13098752,122330.0,122320.0,1e-08]
[1760008259410,2.13097179,122330.0,122320.0,1e-08]
[1760008260669,2.06896895,122330.0,122320.0,1e-08]
[1760008262268,1.83764895,122330.0,122320.0,1e-08]
[1760008262461,2.06896895,122330.0,122320.0,1e-08]
[1760008264210,2.30098255,122330.0,122320.0,1e-08]
[1760008267754,2.30097822,122330.0,122320.0,1e-08]
[1760008267980,1.98457822,122330.0,122320.0,1e-08]
[1760008268209,2.30093822,122330.0,122320.0,1e-08]
[1760008268643,1.98457822,122330.0,122320.0,1e-08]
[1760008268867,2.30093822,122330.0,122320.0,1e-08]
[1760008274642,2.23834079,122330.0,122320.0,1e-08]
[1760008275118,2.23830079,122330.0,122320.0,1e-08]
[1760008275258,2.25595834,122330.0,122320.0,1e-08]
[1760008277632,2.25598169,122330.0,122320.0,1e-08]
[1760008278679,2.31829715,122330.0,122320.0,1e-08]
[1760008290662,2.31829784,122330.0,122320.0,1e-08]
[1760008295865,2.34129253,122330.0,122320.0,1e-08]
[1760008296093,3.53157026,122330.0,122320.0,1e-08]
[1760008296318,3.56105807,122330.0,122320.0,1e-08]
[1760008296557,2.798234,122330.0,122320.0,1e-08]
[1760008297416,2.79826259,122330.0,122320.0,1e-08]
[1760008297641,3.13850259,122330.0,122320.0,1e-08]
[1760008298203,3.10901478,122330.0,122320.0,1e-08]
[1760008300018,3.08938259,122330.0,122320.0,1e-08]
[1760008300428,2.85810259,122330.0,122320.0,1e-08]
[1760008300632,3.08938259,122330.0,122320.0,1e-08]
[1760008301256,3.05989478,122330.0,122320.0,1e-08]
[1760008301698,3.05993478,122330.0,122320.0,1e-08]
[1760008303281,3.05992146,122330.0,122320.0,1e-08]
[1760008305021,3.06419292,122330.0,122320.0,1e-08]
[1760008305684,2.07008885,122330.0,122320.0,1e-08]
[1760008305885,3.06419292,122330.0,122320.0,1e-08]
[1760008306719,2.83291292,122330.0,122320.0,1e-08]
[1760008306919,3.06419292,122330.0,122320.0,1e-08]
[1760008307125,2.83291292,122330.0,122320.0,1e-08]
[1760008307269,3.06419292,122330.0,122320.0,1e-08]
[1760008310188,3.11331292,122330.0,122320.0,1e-08]
[1760008310614,3.87613699,122330.0,122320.0,1e-08]
[1760008310815,3.11331292,122330.0,122320.0,1e-08]
[1760008311037,3.87613699,122330.0,122320.0,1e-08]
[1760008312591,3.87611706,122330.0,122320.0,1e-08]
[1760008312829,3.1427808,122330.0,122320.0,1e-08]
[1760008313257,3.90560487,122330.0,122320.0,1e-08]
[1760008315634,3.0577408,122330.0,122320.0,1e-08]
[1760008315815,3.1427808,122330.0,122320.0,1e-08]
[1760008316270,2.9115008,122330.0,122320.0,1e-08]
[1760008316410,3.1427808,122330.0,122320.0,1e-08]
[1760008316601,2.4861808,122330.0,122320.0,1e-08]
[1760008316826,3.13520774,122330.0,122320.0,1e-08]
[1760008317027,3.14286016,122330.0,122320.0,1e-08]
[1760008317563,2.38003609,122330.0,122320.0,1e-08]
[1760008317729,3.14286016,122330.0,122320.0,1e-08]
[1760008318939,3.1428613,122330.0,122320.0,1e-08]
[1760008319787,3.90568537,122330.0,122320.0,1e-08]
[1760008321062,3.90568537,122330.0,122240.0,0.10061503]
[1760008321063,0.16359918,122250.0,122240.0,0.10061503]
[1760008321265,0.16359918,122250.0,122240.0,0.11696503]
[1760008321950,0.16359918,122250.0,122240.0,0.05077]
[1760008322404,0.1636813,122250.0,122240.0,0.30504469]
[1760008322832,0.1875513,122250.0,122240.0,0.02792]
[1760008323056,0.1712013,122250.0,122240.0,0.05077]
[1760008326991,0.1712013,122250.0,122240.0,0.05484284]
[1760008334375,0.1636813,122250.0,122240.0,0.05484284]
[1760008337057,0.1636813,122250.0,122240.0,0.57099142]
[1760008337276,0.1636813,122250.0,122240.0,0.78901654]
[1760008340507,0.1636813,122250.0,122240.0,0.55773654]
[1760008340722,8.212e-05,122250.0,122240.0,0.98013974]
[1760008340955,8.212e-05,122250.0,122240.0,1.00425875]
[1760008341181,8.212e-05,122250.0,122240.0,1.23553875]
[1760008341396,8.212e-05,122250.0,122240.0,1.21141974]
[1760008341811,8.212e-05,122250.0,122240.0,1.23597931]
[1760008342309,8.212e-05,122250.0,122240.0,1.00469931]
[1760008342535,8.212e-05,122250.0,122240.0,1.23597931]
[1760008342953,8.212e-05,122250.0,122240.0,1.23797931]
[1760008343171,8.212e-05,122250.0,122240.0,1.23997931]
[1760008343386,8.212e-05,122250.0,122240.0,1.23797931]
[1760008343615,8.212e-05,122250.0,122240.0,1.23597931]
[1760008343824,8.212e-05,122250.0,122240.0,0.56145703]
[1760008344036,8.212e-05,122250.0,122240.0,1.24001931]
[1760008344243,8.212e-05,122250.0,122240.0,1.00869931]
[1760008344446,8.212e-05,122250.0,122240.0,1.09377931]
[1760008344658,8.212e-05,122250.0,122240.0,1.32505931]
[1760008345272,8.212e-05,122250.0,122240.0,1.00869931]
[1760008345410,8.212e-05,122250.0,122240.0,1.32505931]
[1760008345813,8.212e-05,122250.0,122240.0,1.09377931]
[1760008346030,8.212e-05,122250.0,122240.0,1.32505931]
[1760008347239,8.212e-05,122250.0,122240.0,0.64649703]
[1760008347466,8.212e-05,122250.0,122240.0,1.32505931]
[1760008352123,8.212e-05,122250.0,122240.0,1.32497931]
[1760008354866,8.212e-05,122250.0,122240.0,0.75445817]
[1760008355077,8.212e-05,122250.0,122240.0,0.9611386]
[1760008355704,8.212e-05,122250.0,122240.0,0.7298986]
[1760008355911,8.212e-05,122250.0,122240.0,0.9611386]
[1760008357768,8.212e-05,122250.0,122240.0,1.30041974]
[1760008358171,8.212e-05,122250.0,122240.0,1.21537974]
[1760008358395,8.212e-05,122250.0,122240.0,1.30041974]
[1760008359456,8.212e-05,122250.0,122240.0,0.98413974]
[1760008359672,8.212e-05,122250.0,122240.0,1.30041974]
[1760008359971,8.212e-05,122250.0,122240.0,0.9611386]
[1760008360308,8.212e-05,122250.0,122240.0,0.6448586]
[1760008360539,8.212e-05,122250.0,122240.0,0.9611386]
[1760008362215,8.212e-05,122250.0,122240.0,0.62185746]
[1760008362444,8.212e-05,122250.0,122240.0,0.9611386]
[1760008363727,8.212e-05,122250.0,122240.0,0.62185746]
[1760008363930,8.212e-05,122250.0,122240.0,0.9611386]
[1760008367160,8.212e-05,122250.0,122240.0,1.30041974]
[1760008367942,8.212e-05,122250.0,122240.0,0.98413974]
[1760008368137,8.212e-05,122250.0,122240.0,1.06917974]
[1760008368343,8.212e-05,122250.0,122240.0,1.30041974]
[1760008368538,8.212e-05,122250.0,122240.0,1.06917974]
[1760008368989,8.212e-05,122250.0,122240.0,1.30041974]
[1760008369604,8.212e-05,122250.0,122240.0,0.62185746]
[1760008369903,8.212e-05,122250.0,122240.0,1.30041974]
[1760008375234,8.212e-05,122250.0,122240.0,1.06917974]
[1760008375672,8.212e-05,122250.0,122240.0,1.30041974]
[1760008375875,8.212e-05,122250.0,122240.0,1.32497774]
[1760008377212,8.212e-05,122250.0,122240.0,1.34997773]
[1760008379372,8.212e-05,122250.0,122240.0,1.34993773]
[1760008380249,8.212e-05,122250.0,122240.0,1.11873773]
[1760008380420,8.212e-05,122250.0,122240.0,1.34993773]
[1760008384167,8.212e-05,122250.0,122240.0,1.43415404]
[1760008386188,8.212e-05,122250.0,122240.0,1.20295404]
[1760008386389,8.212e-05,122250.0,122240.0,1.43415404]
[1760008388560,8.212e-05,122250.0,122240.0,1.20295404]
[1760008388783,8.212e-05,122250.0,122240.0,1.43415404]
[1760008392003,8.212e-05,122250.0,122240.0,2.19693263]
[1760008392341,8.212e-05,122250.0,122240.0,2.53721263]
[1760008395211,8.212e-05,122250.0,122240.0,1.01165545]
[1760008395461,8.212e-05,122250.0,122240.0,2.53721263]
[1760008404134,8.212e-05,122250.0,122240.0,2.30601263]
[1760008404368,8.212e-05,122250.0,122240.0,2.53721263]
[1760008407265,8.212e-05,122250.0,122240.0,2.53717263]
[1760008408698,8.212e-05,122250.0,122240.0,2.30601263]
[1760008408878,8.212e-05,122250.0,122240.0,2.53717263]
[1760008411163,8.212e-05,122250.0,122240.0,2.93944263]
[1760008416305,8.212e-05,122250.0,122240.0,2.70828263]
[1760008416468,0.17170941,122300.0,122290.0,0.4178052]
[1760008416675,0.17175976,122300.0,122290.0,0.6612952]
[1760008416900,0.17175976,122300.0,122290.0,0.7016752]
[1760008417439,0.17175976,122300.0,122290.0,0.44741567]
[1760008417660,5.035e-05,122300.0,122290.0,0.80789679]
[1760008417868,5.035e-05,122300.0,122290.0,1.03905679]
[1760008418756,0.00105035,122300.0,122290.0,1.03905679]
[1760008419407,0.00105035,122300.0,122290.0,0.86866903]
[1760008419614,0.00105035,122300.0,122290.0,1.09982903]
[1760008419819,0.00205035,122300.0,122290.0,1.09982903]
[1760008420236,0.00205035,122300.0,122290.0,0.59130997]
[1760008420501,0.00205035,122300.0,122290.0,1.09982903]
[1760008420713,0.00205035,122300.0,122290.0,1.10782571]
[1760008422136,0.00205035,122300.0,122290.0,1.1093524]
[1760008425520,0.16558264,122300.0,122290.0,1.1093524]
[1760008425727,0.16558264,122300.0,122290.0,0.85509287]
[1760008426166,0.16558264,122300.0,122290.0,0.06223337]
[1760008426434,0.16558264,122300.0,122290.0,0.5476529]
[1760008426652,0.16558264,122300.0,122290.0,0.71119857]
[1760008427859,0.16558264,122300.0,122290.0,0.71115857]
[1760008429510,0.00205035,122300.0,122290.0,0.71115857]
[1760008430594,0.00205035,122300.0,122290.0,0.81742016]
[1760008430841,0.00205035,122300.0,122290.0,1.04854016]
[1760008431489,0.00105035,122300.0,122290.0,1.04854016]
[1760008431879,0.00205035,122300.0,122290.0,1.04854016]
[1760008432259,0.00105035,122300.0,122290.0,1.04854016]
[1760008432695,0.00205035,122300.0,122290.0,0.81742016]
[1760008432902,0.00205035,122300.0,122290.0,0.79428063]
[1760008436239,0.00205035,122300.0,122290.0,1.04854016]
[1760008439605,0.00205035,122300.0,122290.0,0.79428063]
[1760008441559,0.00205035,122300.0,122290.0,0.5400211]
[1760008441790,0.00205035,122300.0,122290.0,0.79428063]
[1760008444321,0.16558264,122300.0,122290.0,0.53961622]
[1760008444567,0.18868264,122300.0,122290.0,0.26154669]
[1760008445265,0.18868264,122300.0,122290.0,0.28478669]
[1760008445964,0.18868264,122300.0,122290.0,0.26154669]
[1760008447615,0.18868264,122300.0,122290.0,0.42509236]
[1760008448042,0.17310264,122300.0,122290.0,0.44833236]
[1760008448289,0.16558264,122300.0,122290.0,0.44833236]
[1760008448505,0.18116264,122300.0,122290.0,0.19397236]
[1760008448719,0.18116264,122300.0,122290.0,0.42509236]
[1760008448958,0.18116264,122300.0,122290.0,0.44833236]
[1760008449175,0.16558264,122300.0,122290.0,0.44833236]
[1760008453294,0.16558264,122300.0,122290.0,0.41833236]
[1760008453500,0.16558264,122300.0,122290.0,0.44551236]
[1760008458473,0.00205035,122300.0,122290.0,0.78453508]
[1760008460804,0.16558264,122300.0,122290.0,0.78453508]
[1760008461015,0.16558264,122300.0,122290.0,0.55341508]
[1760008461211,0.16558264,122300.0,122290.0,0.78453508]
[1760008462072,0.00205035,122300.0,122290.0,0.78453508]
[1760008462526,0.00205035,122300.0,122290.0,0.86765714]
[1760008463556,0.00105035,122300.0,122290.0,0.86765714]
[1760008463770,0.00105035,122300.0,122290.0,0.63653714]
[1760008464011,0.00205035,122300.0,122290.0,0.63653714]
[1760008464225,0.00105035,122300.0,122290.0,0.95285714]
[1760008464462,5.035e-05,122300.0,122290.0,0.95285714]
[1760008464755,5.035e-05,122300.0,122290.0,0.72157714]
[1760008464988,5.035e-05,122300.0,122290.0,0.95285714]
[1760008465219,5.035e-05,122300.0,122290.0,0.86781714]
[1760008469837,5.035e-05,122300.0,122290.0,0.63653714]
[1760008470035,5.035e-05,122300.0,122290.0,0.86781714]
[1760008471870,5.035e-05,122300.0,122290.0,0.52879442]
[1760008472080,5.035e-05,122300.0,122290.0,0.86781714]
[1760008473013,5.035e-05,122300.0,122290.0,0.63653714]
[1760008473209,5.035e-05,122300.0,122290.0,0.86777714]
[1760008473703,0.16358264,122300.0,122290.0,0.38986941]
[1760008473914,0.17957264,122300.0,122290.0,0.44559236]
[1760008474119,0.21671264,122300.0,122290.0,0.02760669]
[1760008474320,0.21671264,122300.0,122290.0,0.24317669]
[1760008474615,0.21671264,122300.0,122290.0,0.40672236]
[1760008474945,0.21671264,122300.0,122290.0,0.42275236]
[1760008475210,0.19186264,122300.0,122290.0,0.42275236]
[1760008477540,0.19186264,122300.0,122290.0,0.44654236]
[1760008477743,0.1893852,122300.0,122290.0,0.41495849]
[1760008478127,0.1893852,122300.0,122290.0,0.43874849]
[1760008480461,0.16353229,122300.0,122290.0,0.54653121]
[1760008480682,0.20036355,122310.0,122290.0,0.77773121]
[1760008480897,0.16353229,122300.0,122290.0,0.77788213]
[1760008481383,0.22657485,122310.0,122290.0,0.77788213]
[1760008481831,0.16353229,122300.0,122290.0,0.77788213]
[1760008482904,0.16353229,122300.0,122290.0,0.54668213]
[1760008483134,0.16353229,122300.0,122290.0,0.77784213]
[1760008485182,0.16353229,122300.0,122290.0,0.43881941]
[1760008485387,0.16353229,122300.0,122290.0,0.77784213]
[1760008486408,0.18808796,122300.0,122290.0,0.77809718]
[1760008490181,0.18563498,122300.0,122290.0,0.77809718]
[1760008493123,0.02455567,122300.0,122290.0,0.77809718]
[1760008493565,0.18808796,122300.0,122290.0,0.77809718]
[1760008493763,0.02455567,122300.0,122290.0,0.77809718]
[1760008494182,0.02455567,122300.0,122290.0,0.43907446]
[1760008494409,0.02455567,122300.0,122290.0,0.77809718]
[1760008500226,0.18808796,122300.0,122290.0,0.77809718]
[1760008500632,0.02455567,122300.0,122290.0,0.77809718]
[1760008501898,0.16488022,122310.0,122290.0,0.77809718]
[1760008502110,0.18943428,122310.0,122300.0,0.53043823]
[1760008502322,0.18943428,122310.0,122300.0,0.19948229]
[1760008502529,0.02591536,122310.0,122300.0,0.55408501]
[1760008502882,0.18943428,122310.0,122300.0,0.55434006]
[1760008503363,0.19043428,122310.0,122300.0,0.55434006]
[1760008504968,0.02691536,122310.0,122300.0,0.55434006]
[1760008505184,0.19043428,122310.0,122300.0,0.55434006]
[1760008506333,0.02691536,122310.0,122300.0,0.63746212]
[1760008506960,0.19143428,122310.0,122300.0,0.21531734]
[1760008507165,0.02791536,122310.0,122300.0,0.55434006]
[1760008508083,0.19143428,122310.0,122300.0,0.55434006]
[1760008508269,0.19143428,122310.0,122300.0,0.7236073]
[1760008508688,0.0033613,122310.0,122300.0,0.7236073]
[1760008509074,0.02791365,122310.0,122300.0,0.7236073]
[1760008510125,0.02546087,122310.0,122300.0,0.7236073]
[1760008510775,0.00090852,122310.0,122300.0,0.7236073]
[1760008511180,0.02546087,122310.0,122300.0,0.7236073]
[1760008511410,0.00090852,122310.0,122300.0,0.7236073]